Cogmind - Beta 14 @@@ ROGUE MODE // 2025.01.07 @ 19:05:08 Player: lazy_engineer Result: Destroyed by G-47 Trooper with Particle Gun Performance ------------- Evolutions (3) 1500 Regions Visited (9) 1800 Robots Destroyed (129) 645 Value Destroyed (5064) 5064 Prototype IDs (32) 640 Alien Tech Used (0) 0 Bonus (2307) 2307 TOTAL SCORE: 11956 Bonus ------- High Alert Combat Kills 850 Follower Combat Kills 304 Entered Garrisons 400 Used RIF Installer 500 Aligned with FarCom 300 Friendly Fire -47 Cogmind --------- Core Integrity 0/700 Matter 275/300 Energy 98/100 System Corruption 4% Temperature Cool (9) Movement Core (50) Location -7/Garrison Parts ------- > --- POWER (2) -------- (None) > --- PROPULSION (4) --- (None) > --- UTILITY (5) ------ Relay Coupler [Duelist] (1) Relay Coupler [Sentry] (26) Relay Coupler [Demolisher] (25) > --- WEAPON (2) ------- Remote Datajack > --- INVENTORY (5) ---- Relay Coupler [NC] (23) Relay Coupler [Duelist] (27) Relay Coupler [Sentry] (25) Remote Datajack Maul Peak State ------------ > --- POWER ------------ Reinforced Deuterium Engine > --- PROPULSION ------- Light Treads Light Treads Armored Treads Improved Titanium Leg > --- UTILITY ---------- Huge Storage Unit Graphene Brace Hacking Suite Hacking Suite Thief Drone Bay > --- WEAPON ----------- High-powered Shotgun Gauss Rifle > --- INVENTORY -------- Improved Ion Engine Light Nuclear Core Flight Unit Heat Sink Improved Heat Sink High-capacity Matter Pod Advanced Weight Redist. System Structural Scanner Active Sensor Suite ECM Suite Reaction Control System Reflective Plating Reflective Plating System Shield System Shield Component Analysis Suite Particle Gun Heavy Assault Rifle Advanced EMP Blaster Datajack Maul Maul [Rating: 48] Favorites ----------- Power Light Nuclear Core Engine Ion Engine Power Core Light Nuclear Core Propulsion Light Treads Treads Light Treads Leg Improved Titanium Leg Wheel Wheel Hover Unit Cooled Airjet Flight Unit VTOL Module Utility Huge Storage Unit Device Graphene Brace Storage Huge Storage Unit Hackware Hacking Suite Protection Medium Armor Plating Weapon Mini Grenade Launcher Energy Gun Particle Gun Ballistic Gun Light Assault Rifle Ballistic Cannon Light Cannon Launcher Mini Grenade Launcher Special Weapon Remote Datajack Impact Weapon Maul Special Melee Weapon Datajack Build | -11 -10 -10 -10 -9 -8 -7 -7 -7 -7 ------- Run | Yrd Mat Min Exi Min Mat Fac Gar Fac Gar Slots Evolved 6 | . . . . . 4 2 . . . Power 1 | . . . . . . 1 . . . Propulsion 2 | . . . . . 2 . . . . Utility 3 | . . . . . 2 1 . . . Weapon . | . . . . . . . . . . Parts Attached 173 | 5 15 8 5 14 70 1 33 17 5 Power 13 | 1 2 1 . 2 3 . 3 1 . Engine 9 | 1 2 1 . 2 1 . 2 . . Core 4 | . . . . . 2 . 1 1 . Reactor . | . . . . . . . . . . Propulsion 43 | 2 3 1 1 2 20 1 7 6 . Treads 30 | 1 3 1 1 2 17 . 5 . . Leg 3 | . . . . . . 1 2 . . Wheel 1 | 1 . . . . . . . . . Hover 3 | . . . . . 1 . . 2 . Flight 6 | . . . . . 2 . . 4 . Utility 74 | 1 5 4 4 6 31 . 10 10 3 Device 26 | . . 2 1 3 12 . 4 4 . Storage 4 | 1 2 . 1 . . . . . . Processor . | . . . . . . . . . . Hackware 13 | . . . . . 2 . 2 6 3 Protection 31 | . 3 2 2 3 17 . 4 . . Artifact . | . . . . . . . . . . Weapon 43 | 1 5 2 . 4 16 . 13 . 2 Energy Gun 1 | . . . . . . . 1 . . Energy Cannon . | . . . . . . . . . . Ballistic Gun 16 | 1 1 . . . 7 . 7 . . Ballistic Cannon 6 | . . 1 . 1 4 . . . . Launcher 13 | . 4 1 . 2 5 . 1 . . Special Weapon 1 | . . . . . . . . . 1 Impact Weapon 5 | . . . . 1 . . 3 . 1 Slashing Weapon . | . . . . . . . . . . Piercing Weapon . | . . . . . . . . . . Special Melee Weapon 1 | . . . . . . . 1 . . Unidentified Prototypes 6 | . . 1 . . 4 . . 1 . Corrupted Parts 1 | . . . . . . . 1 . . System Corruption 10 | . . . . . . . 10 . . Parts Lost 45 | . 3 . . . 15 . 14 8 5 Power 7 | . 1 . . . 2 . 2 2 . Propulsion 17 | . . . . . 4 . 7 3 3 Utility 13 | . 1 . . . 6 . 2 2 2 Weapon 8 | . 1 . . . 3 . 3 1 . Highest Loss Streak 8 | . 2 . . . 8 . 3 4 4 To Critical Strikes . | . . . . . . . . . . Average Slot Usage (%) 93 | . 99 100 71 99 95 80 91 80 55 Engine 8 | . 14 14 14 14 1 7 6 . . Core 2 | . . . . . 7 . 4 5 . Treads 25 | . 27 28 28 28 33 23 21 1 . Leg 1 | . . . . . . 4 7 . . Device 4 | . . 1 1 5 4 7 8 5 . Storage 10 | . 14 14 14 14 9 7 7 . . Hackware 4 | . . . . . 1 15 10 29 35 Protection 11 | . 13 12 12 8 19 . 6 . . Ballistic Gun 5 | . 13 . . . 5 15 8 . . Ballistic Cannon 4 | . . 14 . 13 7 . . . . Launcher 6 | . 14 14 . 12 4 . . . . Peak Build Rating 48 | 6 11 17 14 16 40 42 48 37 35 Average Rating 23 | 4 10 11 9 13 30 40 38 31 26 On Entrance 19 | . 6 11 12 9 12 38 42 37 29 Naked Turns . | . . . . . . . . . . Heaviest Build 118 | 11 92 99 99 97 117 106 118 90 6 Greatest Support 82 | 10 40 40 40 40 82 60 80 40 3 Greatest Overweight (x) 5 | 1 2 2 2 2 5 1 5 2 1 Average Overweight (x) 1 | . 1 2 2 2 1 1 1 . . Largest Inventory Capacity 25 | 8 25 25 25 25 25 25 25 25 5 Average Capacity 22 | 7 21 25 25 25 25 25 25 6 5 Most Carried 25 | 8 25 25 25 25 25 25 25 25 5 Average Carried 21 | 5 16 24 24 24 23 25 22 5 4 Final Capacity 25 | 8 25 25 25 25 25 25 25 5 5 Final Carried 25 | 8 25 25 25 24 25 25 25 5 5 Class Distribution -------------------- 60% | Mutant 27% | Scavenger-Mutant 5% | Bothacker-Mutant 4% | Hacker-Mutant Dominant Class ---------------- Mutant | -10/Materials Mutant | -10/Mines Mutant | -10/Exiles Mutant | -9/Mines Mutant | -8/Materials Hacker-Mutant | -7/Factory Scavenger-Mutant | -7/Garrison Hacker-Mutant | -7/Factory Bothacker-Mutant | -7/Garrison Resources | -11 -10 -10 -10 -9 -8 -7 -7 -7 -7 ----------- Run | Yrd Mat Min Exi Min Mat Fac Gar Fac Gar Matter Collected 5078 | 342 499 73 538 269 1868 . 1259 160 70 Remotely 497 | . . . . . 497 . . . . Salvage Created 4210 | 107 476 103 . 143 1656 . 1551 134 40 Parts 230 | 11 33 8 . 10 104 . 57 5 2 Haulers Intercepted 7 | . 2 . . . 5 . . . . Recyclers Shooed . | . . . . . . . . . . Parts Field Recycled . | . . . . . . . . . . Retrieved Matter . | . . . . . . . . . . Parts Self-Destructed . | . . . . . . . . . . Prevented . | . . . . . . . . . . Kills | -11 -10 -10 -10 -9 -8 -7 -7 -7 -7 ------- Run | Yrd Mat Min Exi Min Mat Fac Gar Fac Gar Combat Hostiles Destroyed 94 | . 14 4 . 11 35 . 26 3 1 Melee 6 | . . . . 2 . . . 3 1 Guns 33 | . 3 . . . 9 . 21 . . Cannons 18 | . . 2 . . 16 . . . . AOE 36 | . 11 2 . 8 10 . 5 . . Classes Destroyed 16 | 3 4 . . 2 6 . . 1 . Worker 8 | 2 2 1 . . 2 . . 1 . Builder 5 | . . . . . 5 . . . . Tunneler 5 | 1 1 2 . . 1 . . . . Hauler 7 | . 2 . . . 5 . . . . Recycler 5 | 1 2 . . 1 1 . . . . Operator 3 | . 2 . . . 1 . . . . Watcher 4 | . . . . . 4 . . . . Swarmer 19 | . 6 2 . 6 2 . 3 . . Grunt 54 | . 8 2 . 2 23 . 18 1 . Brawler 3 | . . . . 1 . . 2 . . Sentry 9 | . . . . . 6 . 3 . . Specialist 3 | . . . . . 2 . . . 1 Hunter 2 | . . . . . 1 . . 1 . Programmer 1 | . . . . . . . . 1 . Heavy 1 | . . . . . 1 . . . . Assembled 2 | . . . . 2 . . . . . Best Kill Streak 8 | 1 7 3 . 4 8 . 5 2 1 Combat Bots Only 6 | . 4 2 . 3 6 . 5 2 1 Max Kills in Single Turn 3 | 1 2 2 . 2 3 . 1 1 1 Gunslinging . | . . . . . . . . . . Exploded 2 | . 2 2 . 2 2 . 1 . . Melee 1 | . . . . 1 . . . 1 1 Uniques/NPCs Destroyed . | . . . . . . . . . . Combat | -11 -10 -10 -10 -9 -8 -7 -7 -7 -7 -------- Run | Yrd Mat Min Exi Min Mat Fac Gar Fac Gar Hostile Shots Fired 792 | . 70 15 . 41 347 . 215 59 45 Missed 228 | . 20 5 . 14 85 . 64 23 17 Damage Taken 8077 | . 589 161 . 378 3927 . 2039 658 325 Core 1184 | . 48 32 . 31 366 . 315 218 174 Absorbed by Shields 32 | . . . . . . . . . 32 Ignored by Resistances 508 | . . . . . 403 . 105 . . Regen/Repaired (Parts) 442 | . 112 . . . 330 . . . . Core Remaining (%) 62 | 100 . . . 55 33 . . . . Volleys Fired 350 | 25 70 8 . 10 148 . 77 . 12 Largest 2 | 1 2 2 . 2 2 . 2 . 1 Hottest 88 | 20 60 65 . 65 80 . 88 . 5 Shots Fired 529 | 25 87 14 . 19 218 . 154 . 12 Gun 310 | 25 64 . . . 81 . 140 . . Cannon 115 | . . 10 . 9 96 . . . . Launcher 92 | . 23 4 . 10 41 . 14 . . Special 12 | . . . . . . . . . 12 Kinetic 417 | 25 64 10 . 9 177 . 132 . . Thermal 8 | . . . . . . . 8 . . Explosive 69 | . 23 4 . 10 32 . . . . Electromagnetic 23 | . . . . . 9 . 14 . . Robot Hit Streak 14 | 5 7 6 . 4 10 . 14 . 5 Robot Miss Streak 4 | 3 3 2 . 3 4 . 4 . 1 Penetration Max . | . . . . . . . . . . Secondary Targets 2 | . . . . . . . 2 . . Max Gunslinging Chain 1 | . . . . . . . 1 . . Shots Hit Robots 388 | 16 45 8 . 13 144 . 125 25 12 Core Hits 237 | 8 41 7 . 16 100 . 61 3 1 Critical Kills 2 | . . . . . 1 . . 1 . Critical Parts Destroyed 10 | 1 . . . . 4 . 4 1 . Critical Strikes 15 | 1 . 1 . . 6 . 5 2 . Burn 1 | . . . . . . . 1 . . Destroy 8 | 1 . . . . 5 . 2 . . Blast 2 | . . 1 . . 1 . . . . Smash 4 | . . . . . . . 2 2 . Melee Attacks 65 | . . . . 13 . . 17 30 5 Impact 46 | . . . . 13 . . 13 15 5 Slashing . | . . . . . . . . . . Piercing . | . . . . . . . . . . Sneak Attacks 13 | . . . . . . . 3 10 . Combat Hostiles 4 | . . . . . . . 3 1 . Follow-up Attacks . | . . . . . . . . . . Damage Inflicted 11438 | 115 1402 471 . 1141 4933 . 2823 466 87 Guns 3299 | 115 328 . . . 1215 . 1641 . . Cannons 1572 | . . 116 . 58 1398 . . . . Explosions 5321 | . 1073 341 . 934 2303 . 670 . . Melee 1157 | . . . . 92 . . 512 466 87 Ramming 89 | . 1 14 . 57 17 . . . . Kinetic 4753 | 115 328 116 . 58 2613 . 1523 . . Thermal 208 | . . . . . . . 208 . . Explosive 4311 | . 1073 341 . 934 1963 . . . . Electromagnetic 920 | . . . . . 340 . 580 . . Impact 1157 | . . . . 92 . . 512 466 87 Slashing . | . . . . . . . . . . Piercing . | . . . . . . . . . . Highest Corruption 11 | . 4 4 4 4 1 . 11 11 4 Average Corruption 5 | . 3 4 4 4 1 . 10 6 4 Corruption Purged 9 | . . . . . . . . 9 . Corruption Blocked . | . . . . . . . . . . Effects 239 | . 37 37 23 38 8 . 76 16 4 Message Errors 55 | . 6 5 8 9 2 . 19 4 2 Matter Fused 59 | . 11 8 4 9 2 . 21 4 . Heat Flow Errors 32 | . 7 6 2 7 1 . 9 . . Energy Discharges 39 | . 6 10 . 5 2 . 10 4 2 Parts Fused 3 | . 1 1 . 1 . . . . . Data Loss (minor) 24 | . 3 4 4 3 . . 8 2 . Data Loss (major) 6 | . . 1 1 . . . 3 1 . Misfires 8 | . 1 2 . 2 . . 3 . . Alerts 10 | . 2 . 4 2 . . 2 . . Misdirections 1 | . . . . . . . . 1 . Weapon Failures 2 | . . . . . 1 . 1 . . Overload Shots . | . . . . . . . . . . Overflow Damage 515 | . 16 36 . 65 68 . 215 115 . Projectiles 7 | . . 6 . 1 . . . . . Explosions 187 | . 16 30 . 63 68 . 10 . . Melee 321 | . . . . 1 . . 205 115 . Knockbacks 22 | . . 2 . 2 12 . 4 2 . Impact 7 | . . . . 1 . . 4 2 . Kinetic 15 | . . 2 . 1 12 . . . . Secondary . | . . . . . . . . . . Self-Inflicted Damage 365 | . 34 44 . 97 120 . 70 . . Shots 20 | . 3 1 . 4 7 . 5 . . Rammed 20 | . 1 1 . 15 3 . . . . Targets Rammed 20 | . 1 1 . 15 3 . . . . Kicked . | . . . . . . . . . . Crushed . | . . . . . . . . . . Highest Temperature 544 | . 277 248 222 276 544 . 235 12 . Average Temperature 105 | . 55 89 101 94 141 . 65 12 . Received Heat Transfer 3144 | . 174 48 . 18 1710 . 1041 108 45 Effects 19 | . 1 . . 1 17 . . . . Shutdowns 5 | . . . . . 5 . . . . Energy Bleed 3 | . . . . 1 2 . . . . Interference 1 | . 1 . . . . . . . . Matter Decay 2 | . . . . . 2 . . . . Short Circuit 2 | . . . . . 2 . . . . Damage (minor) 6 | . . . . . 6 . . . . Siege Activations . | . . . . . . . . . . Robots Corrupted 3 | . . . . 1 . . 2 . . Combat Hostiles 1 | . . . . 1 . . . . . Parts Fried 8 | . . . . . 1 . 5 2 . Impact Corruptions 9 | . . . . 1 . . 5 3 . Robots Melted . | . . . . . . . . . . Combat Hostiles . | . . . . . . . . . . Parts Melted . | . . . . . . . . . . Heat Transferred 483 | . . . . . . . 483 . . Parts Sabotaged . | . . . . . . . . . . Parts Stolen . | . . . . . . . . . . Parts Stripped . | . . . . . . . . . . Power Chain Reactions 2 | . . . . . . . 2 . . Alert | -11 -10 -10 -10 -9 -8 -7 -7 -7 -7 ------- Run | Yrd Mat Min Exi Min Mat Fac Gar Fac Gar Peak Influence 2059 | 20 526 141 . 344 836 380 2059 1116 786 Initial 1080 | . 13 51 . . 17 380 273 1080 723 Average 528 | 8 287 45 . 113 413 380 1134 1052 755 Maximum Alert Level 5 | . 2 . . 1 3 1 5 4 3 Low Security (%) 37 | 100 37 100 . 78 36 . . . . Level 1 15 | . 41 . . 21 14 100 5 . . Level 2 16 | . 21 . . . 33 . 18 . . Level 3 13 | . . . . . 15 . 14 75 100 Level 4 11 | . . . . . . . 41 24 . Level 5 4 | . . . . . . . 19 . . High Security . | . . . . . . . . . . Max Security . | . . . . . . . . . . Squads Dispatched 11 | . 3 . . . 5 . . 3 . Investigation 4 | . 1 . . . 2 . . 1 . Extermination 1 | . . . . . . . . 1 . Reinforcement 5 | . 2 . . . 3 . . . . Assault 1 | . . . . . . . . 1 . Garrison . | . . . . . . . . . . Intercept . | . . . . . . . . . . Searches Triggered . | . . . . . . . . . . Construction Impeded 1 | . . . . . 1 . . . . Haulers Reinforced . | . . . . . . . . . . Active Scanning Responses . | . . . . . . . . . . Cargo Convoy Interrupts . | . . . . . . . . . . Stealth | -11 -10 -10 -10 -9 -8 -7 -7 -7 -7 --------- Run | Yrd Mat Min Exi Min Mat Fac Gar Fac Gar Distress Signals 7 | . 1 . . . 5 . . 1 . Communications Jammed . | . . . . . . . . . . Distress Signals . | . . . . . . . . . . Times Spotted 198 | . 42 6 . 14 59 . 38 21 18 Peak Tracking Total 9 | . 6 3 . 3 6 . 6 9 9 Tactical Retreats 20 | . . 1 . 3 9 . 4 2 1 Traps | -11 -10 -10 -10 -9 -8 -7 -7 -7 -7 ------- Run | Yrd Mat Min Exi Min Mat Fac Gar Fac Gar Traps Triggered 16 | . 6 . . . 2 . 5 . 3 Indirectly . | . . . . . . . . . . Trap Hack Attempts . | . . . . . . . . . . Triggered . | . . . . . . . . . . Disarmed . | . . . . . . . . . . Reprogrammed . | . . . . . . . . . . Reused . | . . . . . . . . . . Traps Extracted . | . . . . . . . . . . Installed . | . . . . . . . . . . Triggered . | . . . . . . . . . . Machines | -11 -10 -10 -10 -9 -8 -7 -7 -7 -7 ---------- Run | Yrd Mat Min Exi Min Mat Fac Gar Fac Gar Machines Disabled 25 | . 6 3 . 3 7 . 5 . 1 Max in Single Turn 3 | . 3 3 . 2 2 . 1 . 1 Garrison Relay 5 | . . . . . . . 4 . 1 Machines Repaired . | . . . . . . . . . . Machines Dismantled . | . . . . . . . . . . Machines Sabotaged . | . . . . . . . . . . Overloaded Fab Kills . | . . . . . . . . . . Hacking | -11 -10 -10 -10 -9 -8 -7 -7 -7 -7 --------- Run | Yrd Mat Min Exi Min Mat Fac Gar Fac Gar Machines Accessed 23 | . 5 2 1 . 10 1 2 2 . Terminals 14 | . 3 1 . . 7 . 2 1 . Fabricators . | . . . . . . . . . . Repair Stations 2 | . 1 . . . 1 . . . . Recycling Units 2 | . 1 . . . 1 . . . . Scanalyzers 1 | . . . . . 1 . . . . Garrison Access 2 | . . . . . . 1 . 1 . Total Hacks 58 | . 13 5 1 . 29 1 4 5 . Successful 31 | . 8 3 1 . 15 1 1 2 . Failed 26 | . 5 2 . . 13 . 3 3 . Catastrophic 6 | . 1 1 . . 2 . . 2 . Database Lockouts 1 | . . . . . 1 . . . . Manual 30 | . 7 6 1 . 14 . . 2 . Terminals 36 | . 8 4 . . 17 . 4 3 . Fabricators . | . . . . . . . . . . Repair Stations 9 | . 3 . . . 6 . . . . Recycling Units 4 | . 2 . . . 2 . . . . Scanalyzers 4 | . . . . . 4 . . . . Garrison Access 3 | . . . . . . 1 . 2 . Terminal Hacks 14 | . 3 3 1 . 6 . 1 . . Part Schematic 1 | . 1 . . . . . . . . Robot Analysis 4 | . . 2 . . 2 . . . . Prototype ID Bank 1 | . . . . . 1 . . . . Open Door 1 | . . 1 . . . . . . . Locate Traps 1 | . . . . . 1 . . . . Hauler Manifests 1 | . . . . . 1 . . . . Zone Layout 3 | . 2 . . . 1 . . . . Security Stations 1 | . . . . . . . 1 . . Derelict Proto ID Bank 1 | . . . 1 . . . . . . Fabricator Hacks . | . . . . . . . . . . Repair Station Hacks 6 | . 2 . . . 4 . . . . Scan Component 3 | . 1 . . . 2 . . . . Repair 3 | . 1 . . . 2 . . . . Recycling Unit Hacks 1 | . 1 . . . . . . . . Report Inventory 1 | . 1 . . . . . . . . Scanalyzer 4 | . . . . . 4 . . . . Insert Component 2 | . . . . . 2 . . . . Analyze 2 | . . . . . 2 . . . . Garrison Access Hacks 3 | . . . . . . 1 . 2 . Unlock Access 2 | . . . . . . 1 . 1 . Coupler Status 1 | . . . . . . . . 1 . Unauthorized Hacks 3 | . 2 . . . 1 . . . . Terminals 2 | . 1 . . . 1 . . . . Operators 2 | . 1 . . . 1 . . . . Fabricators . | . . . . . . . . . . Repair Stations . | . . . . . . . . . . Recycling Units 1 | . 1 . . . . . . . . Reject 1 | . 1 . . . . . . . . Scanalyzers . | . . . . . . . . . . Garrison Access . | . . . . . . . . . . Data Cores Recovered 1 | . . . . . 1 . . . . Used . | . . . . . . . . . . Hacking Detections 17 | . 2 1 . . 10 1 2 1 . Full Trace Events 6 | . . 1 . . 3 . 1 1 . Feedback Events 1 | . . . . . . . 1 . . Corruption 1 | . . . . . . . 1 . . Feedback Blocked . | . . . . . . . . . . Robot Schematics Acquired . | . . . . . . . . . . Robots Built . | . . . . . . . . . . Authchips . | . . . . . . . . . . Time . | . . . . . . . . . . Total Robot Build Rating . | . . . . . . . . . . Part Schematics Acquired 3 | . 1 . . . 2 . . . . Parts Built . | . . . . . . . . . . Authchips . | . . . . . . . . . . Time . | . . . . . . . . . . Total Part Build Rating . | . . . . . . . . . . Parts Repaired 3 | . 1 . . . 2 . . . . Time 102 | . 26 . . . 76 . . . . Parts Recycled . | . . . . . . . . . . Recycled Matter . | . . . . . . . . . . Retrieved Matter . | . . . . . . . . . . Retrieved Components . | . . . . . . . . . . Parts Scanalyzed 2 | . . . . . 2 . . . . Part Schematics Acquired 2 | . . . . . 2 . . . . Parts Damaged . | . . . . . . . . . . Bothacking | -11 -10 -10 -10 -9 -8 -7 -7 -7 -7 ------------ Run | Yrd Mat Min Exi Min Mat Fac Gar Fac Gar Used RIF Installer 1 | . . . . . . . 1 . . Robots Hacked 18 | . . . . . . . 3 7 8 Non-combat 4 | . . . . . . . . 4 . Combat 14 | . . . . . . . 3 3 8 Robot Hacks Applied 22 | . . . . . . . 3 11 8 parse_system 1 | . . . . . . . . 1 . start_evac 1 | . . . . . . . . 1 . ignore_repairs 1 | . . . . . . . . 1 . find_recycling 2 | . . . . . . . . 2 . ignore_parts 1 | . . . . . . . . 1 . link_fov 1 | . . . . . . . . 1 . mark_system 1 | . . . . . . . . . 1 overload_power 1 | . . . . . . . . . 1 amplify_resonance 1 | . . . . . . . . 1 . reboot_system 1 | . . . . . . . 1 . . go_dormant 1 | . . . . . . . . . 1 streamctrl_high 1 | . . . . . . . . . 1 formatsys_high 9 | . . . . . . . 2 3 4 Relay Couplers Released 18 | . . . . . . . 13 . 5 Machine Destruction 18 | . . . . . . . 13 . 5 Attached 9 | . . . . . . . 2 4 3 Fabnet Peak Effective % . | . . . . . . . . . . Robots Rewired . | . . . . . . . . . . Allies Hacked . | . . . . . . . . . . Hacks Repelled . | . . . . . . . . . . Allies | -11 -10 -10 -10 -9 -8 -7 -7 -7 -7 -------- Run | Yrd Mat Min Exi Min Mat Fac Gar Fac Gar Total Allies 14 | . . 1 . 3 . . 2 3 5 Largest Group 4 | . . 1 . 3 1 . 1 2 4 Highest-Rated Group 86 | . . 31 . 40 16 . 16 32 86 Highest-Rated Ally 31 | . . 31 . 16 16 . 16 26 30 Total Orders 26 | . . 6 2 9 5 . 2 2 . EXPLORE 11 | . . 2 1 6 1 . 1 . . RETURN 15 | . . 4 1 3 4 . 1 2 . Ally Attacks 175 | . . 4 . 35 78 . 9 38 11 Total Damage 1107 | . . 9 . 152 385 . 85 249 227 Kills 15 | . . 1 . 4 6 . 1 1 2 Allies Corrupted . | . . . . . . . . . . Allies Melted . | . . . . . . . . . . Intel | -11 -10 -10 -10 -9 -8 -7 -7 -7 -7 ------- Run | Yrd Mat Min Exi Min Mat Fac Gar Fac Gar Robot Analysis Total 4 | . . 2 . . 2 . . . . Derelict Logs Recovered 4 | . . 3 . 1 . . . . . Drone Launches 55 | . . 9 3 15 20 . 3 5 . Drone Recoveries 53 | . . 9 3 15 20 . 2 4 . Exploration | -11 -10 -10 -10 -9 -8 -7 -7 -7 -7 ------------- Run | Yrd Mat Min Exi Min Mat Fac Gar Fac Gar Turns Passed 12988 | 168 2297 1291 980 1540 2759 48 3074 572 259 Spaces Moved 4581 | 111 801 377 280 421 766 19 1026 471 309 Core 33 | 24 . . . . . . . 3 6 Treads 3687 | . 794 377 280 421 766 19 1019 11 . Legs 7 | . . . . . . . 7 . . Wheels 94 | 87 7 . . . . . . . . Hover 170 | . . . . . . . . 170 . Flight 590 | . . . . . . . . 287 303 Fastest Speed 30 | 50 95 320 320 320 235 243 240 30 35 Average Speed 231 | 94 257 320 320 320 248 243 257 55 37 Slowest Speed 560 | 100 320 320 320 320 560 243 560 320 75 Overloaded Moves . | . . . . . . . . . . Propulsion Burnouts . | . . . . . . . . . . Robots Hopped . | . . . . . . . . . . Cave-ins Triggered . | . . . . . . . . . . Exploration Rate (%) 58 | 5 95 98 88 95 91 1 74 13 22 Regions Visited 9 Branch Regions 3 Pre-discovered Areas 1 | . . 1 . . . . . . . Known Exits Taken 2 | . . . . . . 1 . 1 . Unknown Exits Taken 6 | 1 1 1 1 1 1 . . . . Scrap Searched 4 | . . 1 . 3 . . . . . Spaces Dug 10 | . 5 . . . 2 . . 3 . Terrain Destroyed 425 | . 119 38 . 84 175 . 6 3 . Melee 3 | . . . . . . . . 3 . Projectile 17 | . . . . . 17 . . . . AOE 405 | . 119 38 . 84 158 . 6 . . Terrain Rammed . | . . . . . . . . . . Walls Destroyed . | . . . . . . . . . . Machines Disabled . | . . . . . . . . . . Actions | -11 -10 -10 -10 -9 -8 -7 -7 -7 -7 --------- Run | Yrd Mat Min Exi Min Mat Fac Gar Fac Gar Total 6373 | 153 961 448 367 539 1414 20 1288 744 439 Wait 902 | . 36 48 74 60 339 . 100 194 51 Move 4574 | 110 800 376 279 420 765 19 1025 471 309 Hop . | . . . . . . . . . . Pick Up 138 | 13 29 3 2 2 46 . 21 17 5 Fast Attach 23 | . 4 1 2 . 8 1 . 7 . Attach 73 | 5 4 1 . 2 32 . 16 8 5 Detach 5 | . . . 1 . 3 . . . 1 Swap 77 | . 7 6 3 12 30 . 17 2 . Drop 89 | . 10 4 6 5 40 . 7 15 2 Fire 350 | 25 70 8 . 10 148 . 77 . 12 Melee 65 | . . . . 13 . . 17 30 5 Ram . | . . . . . . . . . . Kick . | . . . . . . . . . . Crush 20 | . 1 1 . 15 3 . . . . Escape Stasis 56 | . . . . . . . 8 . 48 Rewire 1 | . . . . . . . . . 1 Trap . | . . . . . . . . . . Miscellaneous . | . . . . . . . . . . Route ------- -11/Scrapyard -10/Materials (discovered 5 exits: [*Mat x3] / *Min x2) -10/Mines (discovered 3 exits: [*Mat x2] / *Exi) -10/Exiles (discovered 2 exits: [*Min x2]) -9/Mines (discovered 2 exits: *Mat x2) -8/Materials (discovered 3 exits: *Fac x3) -7/Factory -7/Garrison (discovered 3 exits: *Fac x3) -7/Factory -7/Garrison History --------- Turn | Location | Event 23 | -11/Scrapyard | Discovered new exit (range 15) 169 | -11/Scrapyard | Entered Materials 300 | -10/Materials | Build established: Mutant 346 | -10/Materials | Discovered new exit (range 16) 887 | -10/Materials | Repaired Lgt. Treads 900 | -10/Materials | Discovered new exit (range 4) 962 | -10/Materials | Discovered new exit (range 15) 1989 | -10/Materials | Discovered new exit (range 15) 2170 | -10/Materials | Discovered new exit (range 11) 2466 | -10/Materials | Entered Mines 2516 | -10/Mines | Learned Materials stockpile data 2590 | -10/Mines | Discovered new exit (range 15) 2596 | -10/Mines | Learned location of Zion (-7) 2999 | -10/Mines | Found the Drone Emporium 3013 | -10/Mines | Found Prototype Device 3014 | -10/Mines | Identified Thief Drone Bay 3107 | -10/Mines | Discovered new exit (range 13) 3323 | -10/Mines | Received a Mining Laser from a helpful Derelict 3471 | -10/Mines | Received a Rocket Launcher from a helpful Derelict 3569 | -10/Mines | Deemed a non-threat by the Exiles lab entrance 3569 | -10/Mines | Discovered new exit (range 5) 3757 | -10/Mines | Entered Exiles 3840 | -10/Exiles | Met 8R-AWN 3898 | -10/Exiles | Met EX-HEX 3988 | -10/Exiles | Met EX-BIN 4026 | -10/Exiles | Aligned with FarCom system 4029 | -10/Exiles | Given EX-Vault access code 4103 | -10/Exiles | Opened EX-Vault 4180 | -10/Exiles | Warned to stay clear of 0b10 Research branches 4270 | -10/Exiles | Discovered new exit (range 54) 4292 | -10/Exiles | Discovered new exit (range 66) 4342 | -10/Exiles | Met EX-DEC 4737 | -10/Exiles | Entered Mines 4768 | -9/Mines | Discovered new exit (range 26) 5147 | -9/Mines | Discovered new exit (range 11) 5518 | -9/Mines | Assisted by bots powering up and referring to "LRC-V3" 5664 | -9/Mines | Excavation squad dispatched 5664 | -9/Mines | A large section of the Mines collapsed 5738 | -9/Mines | Learned Materials terminal intel 6277 | -9/Mines | Entered Materials 6277 | -8/Materials | Accompanied by 1 ally 6277 | -8/Materials | Evolved 4 slots: Propulsion x2, Utility x2 6279 | -8/Materials | Loaded intel: 12 terminal locations 6705 | -8/Materials | Discovered new exit (range 5) 7447 | -8/Materials | Discovered new exit (range 8) 7812 | -8/Materials | Found Prototype Device 8023 | -8/Materials | Identified Active Sensor Suite 8066 | -8/Materials | Repaired Adv. Treads 8108 | -8/Materials | Repaired Arm. Treads 8149 | -8/Materials | Build established: Scavenger-Mutant 8322 | -8/Materials | Central database locked down 8634 | -8/Materials | Core integrity fell below 50% 8700 | -8/Materials | Lost 8 parts (1p2n3u2w) 8818 | -8/Materials | Discovered new exit (range 59) 9036 | -8/Materials | Entered Factory 9036 | -7/Factory | Evolved 2 slots: Power x1, Utility x1 9077 | -7/Factory | Build established: Hacker-Mutant 9084 | -7/Factory | Identified exit to Garrison 9084 | -7/Factory | Entered Garrison 9210 | -7/Garrison | Triggered checkpoint 9346 | -7/Garrison | Garrison Relay disabled 9392 | -7/Garrison | Triggered checkpoint 9394 | -7/Garrison | Triggered checkpoint 9397 | -7/Garrison | Triggered checkpoint 9486 | -7/Garrison | Build established: Scavenger-Mutant 9696 | -7/Garrison | Triggered checkpoint 9880 | -7/Garrison | Lost 3 parts (2n1u) 9893 | -7/Garrison | System corruption reached 10% 9988 | -7/Garrison | Triggered checkpoint 10062 | -7/Garrison | Learned Factory security intel 10090 | -7/Garrison | Garrison Relay disabled 10110 | -7/Garrison | Triggered checkpoint 10395 | -7/Garrison | Discovered new exit (range 12) 10714 | -7/Garrison | Triggered checkpoint 10820 | -7/Garrison | Discovered new exit (range 15) 11108 | -7/Garrison | Discovered new exit (range 11) 11129 | -7/Garrison | Installed Relay Interface Framework 11567 | -7/Garrison | Garrison Relay disabled 11962 | -7/Garrison | Triggered checkpoint 12038 | -7/Garrison | Garrison Relay disabled 12075 | -7/Garrison | Build established: Bothacker-Mutant 12158 | -7/Garrison | Entered Factory 12158 | -7/Factory | Accompanied by 1 ally 12533 | -7/Factory | Core integrity fell below 50% 12558 | -7/Factory | First assault squad dispatched 12578 | -7/Factory | Lost 3 parts (1p1n1u) 12685 | -7/Factory | Build established: Hacker-Mutant 12730 | -7/Factory | Identified exit to Garrison 12730 | -7/Factory | Entered Garrison 12733 | -7/Garrison | Lost 4 parts (1p1n1u1w) 12780 | -7/Garrison | Triggered checkpoint 12789 | -7/Garrison | Core integrity fell below 20% 12794 | -7/Garrison | Garrison Relay disabled 12831 | -7/Garrison | Lost 4 parts (2n2u) 12972 | -7/Garrison | Triggered checkpoint 12989 | -7/Garrison | Destroyed by G-47 Trooper with Particle Gun Last Messages --------------- 12977_ B-48 Gladiator sneak attacks. 12979_ Jacked B-48 Gladiator... >>streamctrl_high Hijacking control node. 12981_ Trooper 4f suffers critical hit (Burn). 12981_ Jacked B-48 Gladiator... >>mark_system System marked: B-48 Gladiator. 12982_ Fighter 4b reactivates. 12982_ Jacked B-48 Gladiator... 12984_ Jacked G-47 Trooper... >>overload_power Initiated overload sequence, T-5 to critical power. Garrison Door activated. 12985_ Slug penetrates Wall. 12986_ Slug penetrates Fighter 4b. 12987_ Trooper 4f heat short circuits Imp. Heat Sink. 12987_ Surge Thruster destroyed. 12989_ G-47 Trooper Lgt. Nuclear Core critical detonation. 12989_ G-47 Trooper destroyed. Map ----- +----------------------------------------------------+ | ?????????????????????????????????????????????????? | | ?????????????????????????????????????????????????? | | ?????????????????????????????????????????????????? | | ?????????????????????????????????????????????????? | | ?????????????????????????????????????????????????? | | ?????????????????????????????????????????????????? | | ?????????????????????????????????????????????????? | | ?????????????????????????????????????????????????? | | ?????????????????????????????????????????????????? | | ?????????????????????????????????????????????????? | | ?????????????????????????????????????????????????? | | ?????????????????????????????????????????????????? | | ?????????????????????????????????????????????????? | | ?????????????????????????????????????????????????? | | ?????????????????????????????????????????????????? | | ?????????????????????????????????????????????????? | | ?????????????????????????????????????????????????? | | ?????????????????????????????????????????????????? | | ?????????????????????????????????????????????????? | | ?????????????????????????????????????????????????? | | ????????????????????????####??????################ | | ???????????????????????? #??????# | | ???????????????????????? #??????# | | ????????????????????????# #??????# ############# | | ????????????????????????# #??????# #???????????? | | ????????????????????????#@ #??????# #???????????? | | ????????????????????????# #??????# ^#???????????? | | ????????????????????????# #??????# #???????????? | | ????????????????????????# ######## #???????????? | | ????????????????????????# ## ## #???????????? | | ???????????????????????## ;# ## ##??????????? | | ???????????????????????# g #??????????? | | ???????????????? %=b #??????????? | | ??????????????# g[ = #??????????? | | ??????????????########## ;; ## #??????????? | | ???????????????????????#g ## ## g #??????????? | | ?????????????????????? g "??????????? | | ?????????????????????# g g"??????????? | | ?????????????????????# "??????????? | | ?????????????????????# ??????????? | | ?????????????????????### ## ## ##?????????? | | ???????????????????????# ## ## #??????????? | | ??????????????????????? ? ? #??????????? | | ?????????????????????? ? ? #??????????? | | ??????????????????????## #??????????? | | ???????????????????????## ## #? #??????????? | | ????????????????????????????? ??? #??????????? | | ??????????????????????????????????? #??????????? | | ??????????????????????????????????? ???????????? | | ?????????????????????????????????????????????????? | +----------------------------------------------------+ Best States ------------- Heat Dissipation 48 Energy Generation 23 Energy Capacity 455 Matter Stores 300 Matter Capacity 300 Sight Range 16 Terrain Scan Density 10 Armor Coverage 600 Resistance: KI 20 Resistance: TH 10 Evasion (%) 64 Recoil Reduction 4 Offensive Hacking 20 Defensive Hacking 20 Relay Coupler Types 5 Relay Coupler Value 123 Item Schematics ----------------- Transport Network Coupler | -10/Materials | Hacked ECM Suite | -8/Materials | Scanalyzed System Shield | -8/Materials | Scanalyzed Robot Schematics ------------------ None Fabricated ------------ Nothing Alien Tech Used ----------------- None Achievements -------------- Armchair Analyst Challenges ------------ None Game ------ Seed FireBoltInverter Manual? 0 Play Time 01:31:17 Cumulative 53.9 hours Start 2025.01.07 @ 17:30:14 End 2025.01.07 @ 19:05:08 Sessions 1 Manual Loads 0 Difficulty Rogue Special Mode None Game No. 106 Rogue 106 Adventurer 0 Explorer 0 Win Type - Total 0 Types 0/0/0/0/0/0/0/0/0 Lore% 19 Gallery% 34 Achievement% 30 Wizard Run 0 Options --------- Layout 0 ASCII 0 Keyboard 0 Movement Mouse Keybinds 0 Fullscreen 1 Font 24/Smallcaps Map View 76x50 Zoom Use 0% Tactical HUD 1 Map Filters NONE Filters NONE Steam 1 RUN: f14400c6-72cb-4671-a70c-be23fbaaf9fc